[Event "Titled Tuesday Blitz May 9 Late 2023"]
[White "Demchenko, Anton"]
[Black "angelgab3"]
[WhiteFideId "4160258"]
[WhiteElo "2545"]
[BlackElo "2541"]
[Result "1-0"]
[Round "08"]
[TimeControl "180+2"]
[Date "2023.05.09"]
[WhiteClock "0:00:11"]
[BlackClock "0:00:20"]

1. e4 {[%clk 0:03:00]}  e5 {[%clk 0:02:59]} 2. Nf3 {[%clk 0:03:00]}  Nc6 {[%clk 0:03:00]} 3. Bc4 {[%clk 0:03:00]}  Bc5 {[%clk 0:02:59]} 4. d3 {[%clk 0:03:01]}  Nf6 {[%clk 0:03:00]} 5. Bg5 {[%clk 0:03:01]}  h6 {[%clk 0:03:00]} 6. Bh4 {[%clk 0:03:02]}  Be7 {[%clk 0:03:00]} 7. Bg3 {[%clk 0:03:02]}  d6 {[%clk 0:03:00]} 8. a4 {[%clk 0:03:03]}  a5 {[%clk 0:03:01]} 9. h3 {[%clk 0:03:02]}  Be6 {[%clk 0:03:01]} 10. Bxe6 {[%clk 0:03:01]}  fxe6 {[%clk 0:03:02]} 11. c3 {[%clk 0:03:02]}  O-O {[%clk 0:03:02]} 12. Nbd2 {[%clk 0:03:02]}  Kh8 {[%clk 0:03:01]} 13. O-O {[%clk 0:03:01]}  Qe8 {[%clk 0:02:59]} 14. Qb3 {[%clk 0:03:00]}  Nd8 {[%clk 0:02:59]} 15. d4 {[%clk 0:02:59]}  exd4 {[%clk 0:02:55]} 16. Nxd4 {[%clk 0:02:52]}  e5 {[%clk 0:02:55]} 17. Nb5 {[%clk 0:02:49]}  Rc8 {[%clk 0:02:54]} 18. Qc2 {[%clk 0:02:20]}  Nh5 {[%clk 0:02:50]} 19. Nc4 {[%clk 0:02:14]}  Qg6 {[%clk 0:02:41]} 20. Nxa5 {[%clk 0:02:03]}  b6 {[%clk 0:02:30]} 21. Nc4 {[%clk 0:01:58]}  Ne6 {[%clk 0:02:30]} 22. Ne3 {[%clk 0:01:53]}  c6 {[%clk 0:02:01]} 23. Na3 {[%clk 0:01:49]}  Bg5 {[%clk 0:01:29]} 24. Nf5 {[%clk 0:01:34]}  Rcd8 {[%clk 0:01:30]} 25. Nc4 {[%clk 0:01:31]}  Bf4 {[%clk 0:01:30]} 26. Ncxd6 {[%clk 0:01:26]}  Bxg3 {[%clk 0:01:22]} 27. fxg3 {[%clk 0:01:23]}  Nxg3 {[%clk 0:01:23]} 28. Rf3 {[%clk 0:01:14]}  Nh5 {[%clk 0:01:21]} 29. Nc4 {[%clk 0:01:00]}  Ng5 {[%clk 0:01:18]} 30. Re3 {[%clk 0:00:52]}  Nf4 {[%clk 0:01:02]} 31. Kh2 {[%clk 0:00:51]}  Nxe4 {[%clk 0:01:01]} 32. Qxe4 {[%clk 0:00:50]}  Qxf5 {[%clk 0:00:52]} 33. Qxf5 {[%clk 0:00:39]}  Rxf5 {[%clk 0:00:53]} 34. Rf1 {[%clk 0:00:34]}  b5 {[%clk 0:00:42]} 35. axb5 {[%clk 0:00:23]}  cxb5 {[%clk 0:00:42]} 36. Nxe5 {[%clk 0:00:24]}  Kh7 {[%clk 0:00:35]} 37. Nd3 {[%clk 0:00:11]}  Nd5 {[%clk 0:00:26]} 38. Ref3 {[%clk 0:00:10]}  Rxf3 {[%clk 0:00:22]} 39. Rxf3 {[%clk 0:00:11]}  Re8 {[%clk 0:00:20]} 40. Kg1 {[%clk 0:00:08]}  Re2 {[%clk 0:00:19]} 41. Rf2 {[%clk 0:00:09]}  Re3 {[%clk 0:00:19]} 42. Nf4 {[%clk 0:00:08]}  Nxf4 {[%clk 0:00:18]} 43. Rxf4 {[%clk 0:00:09]}  Re2 {[%clk 0:00:18]} 44. Rb4 {[%clk 0:00:09]}  Re5 {[%clk 0:00:18]} 45. Kf2 {[%clk 0:00:10]}  Kg6 {[%clk 0:00:18]} 46. Kf3 {[%clk 0:00:09]}  Kf6 {[%clk 0:00:18]} 47. Rf4+ {[%clk 0:00:10]}  Kg6 {[%clk 0:00:18]} 48. Re4 {[%clk 0:00:10]}  Rd5 {[%clk 0:00:18]} 49. Ke2 {[%clk 0:00:09]}  h5 {[%clk 0:00:18]} 50. Rd4 {[%clk 0:00:08]}  Re5+ {[%clk 0:00:17]} 51. Kf2 {[%clk 0:00:08]}  Kf5 {[%clk 0:00:17]} 52. g3 {[%clk 0:00:07]}  g6 {[%clk 0:00:16]} 53. h4 {[%clk 0:00:07]}  Rc5 {[%clk 0:00:16]} 54. Kf3 {[%clk 0:00:07]}  Re5 {[%clk 0:00:16]} 55. Rf4+ {[%clk 0:00:07]}  Ke6 {[%clk 0:00:16]} 56. Re4 {[%clk 0:00:08]}  Kd5 {[%clk 0:00:17]} 57. Rxe5+ {[%clk 0:00:09]}  Kxe5 {[%clk 0:00:18]} 58. b3 {[%clk 0:00:09]}  Kd5 {[%clk 0:00:18]} 59. Kf4 {[%clk 0:00:09]}  Kc5 {[%clk 0:00:18]} 60. Kg5 {[%clk 0:00:10]}  Kd5 {[%clk 0:00:18]} 61. Kxg6 {[%clk 0:00:10]}  Kc5 {[%clk 0:00:19]} 62. Kxh5 {[%clk 0:00:10]}  Kd5 {[%clk 0:00:19]} 63. Kg5 {[%clk 0:00:11]}  Kc5 {[%clk 0:00:20]} 64. h5 {[%clk 0:00:11]}  Kd5 {[%clk 0:00:20]} 65. h6 {[%clk 0:00:11]}  b4 {[%clk 0:00:20]} 66. cxb4 {[%clk 0:00:11]} 1-0


[Site "https://www.chess.com"]

[Event "Titled Tuesday Blitz May 9 Late 2023"]
[White "Kobo, Ori"]
[Black "Altman, Joshua"]
[WhiteFideId "2812320"]
[BlackFideId "426210"]
[WhiteElo "2454"]
[BlackElo "2028"]
[Result "1-0"]
[Round "08"]
[TimeControl "180+2"]
[Date "2023.05.09"]
[WhiteClock "0:00:13"]
[BlackClock "0:00:17"]

1. e4 {[%clk 0:03:00]}  e6 {[%clk 0:02:59]} 2. Qe2 {[%clk 0:02:59]}  Be7 {[%clk 0:02:59]} 3. Nf3 {[%clk 0:02:56]}  d5 {[%clk 0:02:59]} 4. d3 {[%clk 0:02:52]}  Nf6 {[%clk 0:02:56]} 5. g3 {[%clk 0:02:52]}  c5 {[%clk 0:02:56]} 6. Bg2 {[%clk 0:02:53]}  Nc6 {[%clk 0:02:56]} 7. O-O {[%clk 0:02:53]}  O-O {[%clk 0:02:52]} 8. Re1 {[%clk 0:02:51]}  b6 {[%clk 0:02:51]} 9. e5 {[%clk 0:02:43]}  Nd7 {[%clk 0:02:49]} 10. Nbd2 {[%clk 0:02:43]}  Bb7 {[%clk 0:02:46]} 11. Nf1 {[%clk 0:02:43]}  Qc7 {[%clk 0:02:37]} 12. h4 {[%clk 0:02:40]}  Nd4 {[%clk 0:02:30]} 13. Nxd4 {[%clk 0:02:37]}  cxd4 {[%clk 0:02:31]} 14. Bf4 {[%clk 0:02:34]}  Rac8 {[%clk 0:02:29]} 15. Rac1 {[%clk 0:02:30]}  Rfd8 {[%clk 0:02:14]} 16. Nh2 {[%clk 0:02:28]}  Nf8 {[%clk 0:02:12]} 17. h5 {[%clk 0:02:25]}  h6 {[%clk 0:01:59]} 18. a3 {[%clk 0:02:11]}  Re8 {[%clk 0:01:48]} 19. Qd2 {[%clk 0:01:57]}  Qd8 {[%clk 0:01:44]} 20. Nf3 {[%clk 0:01:53]}  Bc5 {[%clk 0:01:27]} 21. b4 {[%clk 0:01:52]}  Be7 {[%clk 0:01:27]} 22. Nxd4 {[%clk 0:01:52]}  a5 {[%clk 0:01:26]} 23. c3 {[%clk 0:01:48]}  a4 {[%clk 0:01:23]} 24. Qd1 {[%clk 0:01:38]}  Qd7 {[%clk 0:01:21]} 25. Qg4 {[%clk 0:01:35]}  Kh7 {[%clk 0:01:19]} 26. Bd2 {[%clk 0:01:25]}  Ba6 {[%clk 0:01:06]} 27. Bf1 {[%clk 0:01:23]}  f5 {[%clk 0:00:59]} 28. Qf3 {[%clk 0:01:04]}  Rc7 {[%clk 0:00:55]} 29. g4 {[%clk 0:01:02]}  fxg4 {[%clk 0:00:47]} 30. Qxg4 {[%clk 0:01:02]}  Kh8 {[%clk 0:00:40]} 31. Qg3 {[%clk 0:00:54]}  Qd8 {[%clk 0:00:35]} 32. Nf3 {[%clk 0:00:46]}  Nh7 {[%clk 0:00:32]} 33. Bh3 {[%clk 0:00:42]}  Bg5 {[%clk 0:00:30]} 34. Nxg5 {[%clk 0:00:40]}  Nxg5 {[%clk 0:00:30]} 35. Bxg5 {[%clk 0:00:39]}  Qxg5 {[%clk 0:00:30]} 36. Qxg5 {[%clk 0:00:38]}  hxg5 {[%clk 0:00:31]} 37. d4 {[%clk 0:00:37]}  Rc6 {[%clk 0:00:28]} 38. Re3 {[%clk 0:00:37]}  Rec8 {[%clk 0:00:27]} 39. Rg3 {[%clk 0:00:37]}  Be2 {[%clk 0:00:24]} 40. Kg2 {[%clk 0:00:31]}  Bxh5 {[%clk 0:00:22]} 41. Rxg5 {[%clk 0:00:30]}  Bf7 {[%clk 0:00:22]} 42. Rg3 {[%clk 0:00:30]}  Rc4 {[%clk 0:00:22]} 43. Rf3 {[%clk 0:00:18]}  Kg8 {[%clk 0:00:21]} 44. Bg4 {[%clk 0:00:08]}  Rxd4 {[%clk 0:00:20]} 45. cxd4 {[%clk 0:00:08]}  Rxc1 {[%clk 0:00:21]} 46. Kg3 {[%clk 0:00:09]}  Rc4 {[%clk 0:00:20]} 47. Rd3 {[%clk 0:00:09]}  Bg6 {[%clk 0:00:20]} 48. Bxe6+ {[%clk 0:00:09]}  Kf8 {[%clk 0:00:20]} 49. Rf3+ {[%clk 0:00:08]}  Ke7 {[%clk 0:00:20]} 50. Bxd5 {[%clk 0:00:08]}  Rxd4 {[%clk 0:00:20]} 51. Bc6 {[%clk 0:00:09]}  Bh5 {[%clk 0:00:19]} 52. Re3 {[%clk 0:00:08]}  Bf7 {[%clk 0:00:17]} 53. Bxa4 {[%clk 0:00:07]}  Rd2 {[%clk 0:00:16]} 54. Bc6 {[%clk 0:00:07]}  Rb2 {[%clk 0:00:15]} 55. b5 {[%clk 0:00:07]}  Bc4 {[%clk 0:00:14]} 56. f4 {[%clk 0:00:07]}  Ra2 {[%clk 0:00:13]} 57. Rc3 {[%clk 0:00:07]}  Be6 {[%clk 0:00:12]} 58. Rd3 {[%clk 0:00:07]}  Rb2 {[%clk 0:00:12]} 59. Re3 {[%clk 0:00:07]}  Bc4 {[%clk 0:00:13]} 60. f5 {[%clk 0:00:07]}  Bxb5 {[%clk 0:00:13]} 61. Bxb5 {[%clk 0:00:07]}  Rxb5 {[%clk 0:00:14]} 62. Kf4 {[%clk 0:00:07]}  Ra5 {[%clk 0:00:14]} 63. Rg3 {[%clk 0:00:06]}  Ra4+ {[%clk 0:00:15]} 64. Kg5 {[%clk 0:00:07]}  Kf7 {[%clk 0:00:15]} 65. Rc3 {[%clk 0:00:07]}  Re4 {[%clk 0:00:14]} 66. Rc7+ {[%clk 0:00:07]}  Kf8 {[%clk 0:00:14]} 67. Rc8+ {[%clk 0:00:07]}  Kf7 {[%clk 0:00:15]} 68. e6+ {[%clk 0:00:08]}  Ke7 {[%clk 0:00:15]} 69. Rc7+ {[%clk 0:00:08]}  Kd6 {[%clk 0:00:16]} 70. Rd7+ {[%clk 0:00:08]}  Kc6 {[%clk 0:00:16]} 71. Rxg7 {[%clk 0:00:09]}  Re1 {[%clk 0:00:16]} 72. Ra7 {[%clk 0:00:09]}  Kd6 {[%clk 0:00:13]} 73. Kf6 {[%clk 0:00:09]}  Rh1 {[%clk 0:00:13]} 74. Rd7+ {[%clk 0:00:10]}  Kc6 {[%clk 0:00:13]} 75. Rd3 {[%clk 0:00:10]}  Rh6+ {[%clk 0:00:13]} 76. Kg7 {[%clk 0:00:10]}  Rh5 {[%clk 0:00:13]} 77. f6 {[%clk 0:00:10]}  Rg5+ {[%clk 0:00:14]} 78. Kf7 {[%clk 0:00:10]}  Rf5 {[%clk 0:00:13]} 79. e7 {[%clk 0:00:10]}  Re5 {[%clk 0:00:13]} 80. e8=Q+ {[%clk 0:00:10]}  Rxe8 {[%clk 0:00:13]} 81. Kxe8 {[%clk 0:00:11]}  b5 {[%clk 0:00:14]} 82. f7 {[%clk 0:00:12]}  b4 {[%clk 0:00:14]} 83. axb4 {[%clk 0:00:12]}  Kb7 {[%clk 0:00:15]} 84. f8=Q {[%clk 0:00:12]}  Ka7 {[%clk 0:00:15]} 85. Qc5+ {[%clk 0:00:12]}  Kb7 {[%clk 0:00:16]} 86. Rd7+ {[%clk 0:00:13]}  Kb8 {[%clk 0:00:16]} 87. Qc7+ {[%clk 0:00:12]}  Ka8 {[%clk 0:00:17]} 88. Qb7# {[%clk 0:00:13]} 1-0


[Site "https://www.chess.com"]

[Event "Titled Tuesday Blitz May 9 Late 2023"]
[White "Ezat, Mohamed"]
[Black "Tanenbaum, Zachary"]
[WhiteFideId "10600906"]
[BlackFideId "2060850"]
[WhiteElo "2386"]
[BlackElo "2175"]
[Result "1-0"]
[Round "08"]
[TimeControl "180+2"]
[Date "2023.05.09"]
[WhiteClock "0:00:43"]
[BlackClock "0:00:00"]

1. d4 {[%clk 0:02:48]}  d5 {[%clk 0:02:59]} 2. c4 {[%clk 0:02:48]}  dxc4 {[%clk 0:02:59]} 3. e4 {[%clk 0:02:46]}  b5 {[%clk 0:02:58]} 4. a4 {[%clk 0:02:43]}  c6 {[%clk 0:02:59]} 5. Nf3 {[%clk 0:02:42]}  Nf6 {[%clk 0:02:58]} 6. e5 {[%clk 0:02:41]}  Nd5 {[%clk 0:02:58]} 7. axb5 {[%clk 0:02:40]}  cxb5 {[%clk 0:02:58]} 8. b3 {[%clk 0:02:40]}  cxb3 {[%clk 0:02:39]} 9. Bxb5+ {[%clk 0:02:38]}  Bd7 {[%clk 0:02:39]} 10. Qxb3 {[%clk 0:02:38]}  e6 {[%clk 0:02:37]} 11. O-O {[%clk 0:02:36]}  Bxb5 {[%clk 0:02:30]} 12. Qxb5+ {[%clk 0:02:35]}  Qd7 {[%clk 0:02:30]} 13. Qe2 {[%clk 0:02:33]}  Nc6 {[%clk 0:02:26]} 14. Nbd2 {[%clk 0:02:23]}  Be7 {[%clk 0:02:24]} 15. Ne4 {[%clk 0:02:22]}  O-O {[%clk 0:02:19]} 16. Ba3 {[%clk 0:02:12]}  a5 {[%clk 0:01:49]} 17. Bxe7 {[%clk 0:02:05]}  Qxe7 {[%clk 0:01:47]} 18. h4 {[%clk 0:02:04]}  h6 {[%clk 0:01:41]} 19. Nd6 {[%clk 0:01:57]}  Qd7 {[%clk 0:00:47]} 20. Ra4 {[%clk 0:01:58]}  Nxe5 {[%clk 0:00:43]} 21. Qxe5 {[%clk 0:01:49]}  Qxa4 {[%clk 0:00:42]} 22. Ne4 {[%clk 0:01:41]}  Qd7 {[%clk 0:00:39]} 23. Nc5 {[%clk 0:01:41]}  Qe7 {[%clk 0:00:35]} 24. Re1 {[%clk 0:01:40]}  Qf6 {[%clk 0:00:34]} 25. Qd6 {[%clk 0:01:35]}  Rfd8 {[%clk 0:00:33]} 26. Qc6 {[%clk 0:01:34]}  Ne7 {[%clk 0:00:29]} 27. Qe4 {[%clk 0:01:31]}  Nf5 {[%clk 0:00:29]} 28. Ne5 {[%clk 0:01:26]}  Rxd4 {[%clk 0:00:28]} 29. Qxa8+ {[%clk 0:01:25]}  Kh7 {[%clk 0:00:28]} 30. Ncd7 {[%clk 0:01:24]}  Qxh4 {[%clk 0:00:14]} 31. Nf8+ {[%clk 0:01:22]}  Kg8 {[%clk 0:00:15]} 32. Nxe6+ {[%clk 0:01:13]}  Kh7 {[%clk 0:00:15]} 33. Nxd4 {[%clk 0:01:00]}  Qxd4 {[%clk 0:00:11]} 34. Qe4 {[%clk 0:01:00]}  Qxe4 {[%clk 0:00:08]} 35. Rxe4 {[%clk 0:00:59]}  f6 {[%clk 0:00:07]} 36. Nf3 {[%clk 0:00:55]}  Nd6 {[%clk 0:00:06]} 37. Ra4 {[%clk 0:00:54]}  g5 {[%clk 0:00:05]} 38. Rxa5 {[%clk 0:00:53]}  Kg6 {[%clk 0:00:05]} 39. Ra6 {[%clk 0:00:53]}  Nf7 {[%clk 0:00:05]} 40. Nd4 {[%clk 0:00:52]}  h5 {[%clk 0:00:04]} 41. f3 {[%clk 0:00:49]}  Ne5 {[%clk 0:00:04]} 42. Ne2 {[%clk 0:00:45]}  h4 {[%clk 0:00:04]} 43. Nc3 {[%clk 0:00:45]}  h3 {[%clk 0:00:04]} 44. Ne4 {[%clk 0:00:44]}  hxg2 {[%clk 0:00:02]} 45. Rxf6+ {[%clk 0:00:43]}  Kg7 {[%clk 0:00:00]} 46. Rf5 {[%clk 0:00:43]} 1-0


[Site "https://www.chess.com"]

[Event "Titled Tuesday Blitz May 9 Late 2023"]
[White "Sowa, Ryan"]
[Black "Guz, Ari"]
[WhiteFideId "30901693"]
[BlackFideId "2825759"]
[WhiteElo "2646"]
[BlackElo "2205"]
[Result "0-1"]
[Round "08"]
[TimeControl "180+2"]
[Date "2023.05.09"]
[WhiteClock "0:00:00"]
[BlackClock "0:00:32"]

1. Nf3 {[%clk 0:02:59]}  g6 {[%clk 0:02:49]} 2. b3 {[%clk 0:03:00]}  Bg7 {[%clk 0:02:50]} 3. d4 {[%clk 0:02:59]}  Nf6 {[%clk 0:02:48]} 4. Bb2 {[%clk 0:02:58]}  O-O {[%clk 0:02:49]} 5. g3 {[%clk 0:02:57]}  b6 {[%clk 0:02:48]} 6. Bg2 {[%clk 0:02:57]}  Bb7 {[%clk 0:02:49]} 7. O-O {[%clk 0:02:58]}  d6 {[%clk 0:02:49]} 8. c4 {[%clk 0:02:58]}  e6 {[%clk 0:02:48]} 9. Nbd2 {[%clk 0:02:55]}  Nbd7 {[%clk 0:02:48]} 10. Qc2 {[%clk 0:02:54]}  Re8 {[%clk 0:02:47]} 11. e4 {[%clk 0:02:54]}  e5 {[%clk 0:02:47]} 12. d5 {[%clk 0:02:55]}  a5 {[%clk 0:02:48]} 13. Ne1 {[%clk 0:02:54]}  Nc5 {[%clk 0:02:46]} 14. a3 {[%clk 0:02:52]}  Qd7 {[%clk 0:02:45]} 15. Nd3 {[%clk 0:02:42]}  Nxd3 {[%clk 0:02:38]} 16. Qxd3 {[%clk 0:02:43]}  Nh5 {[%clk 0:02:38]} 17. b4 {[%clk 0:02:34]}  f5 {[%clk 0:02:30]} 18. Rfc1 {[%clk 0:02:34]}  f4 {[%clk 0:02:25]} 19. c5 {[%clk 0:02:31]}  bxc5 {[%clk 0:02:23]} 20. bxc5 {[%clk 0:02:31]}  Ba6 {[%clk 0:02:24]} 21. Qc2 {[%clk 0:02:30]}  Bh6 {[%clk 0:02:20]} 22. Bc3 {[%clk 0:02:16]}  fxg3 {[%clk 0:02:14]} 23. hxg3 {[%clk 0:02:14]}  Rf8 {[%clk 0:02:14]} 24. Re1 {[%clk 0:01:59]}  Qf7 {[%clk 0:01:58]} 25. Nf1 {[%clk 0:01:51]}  Nf6 {[%clk 0:01:55]} 26. Bh3 {[%clk 0:01:43]}  Bc8 {[%clk 0:01:44]} 27. Bxc8 {[%clk 0:01:41]}  Raxc8 {[%clk 0:01:45]} 28. Qe2 {[%clk 0:01:25]}  Qd7 {[%clk 0:01:40]} 29. c6 {[%clk 0:01:21]}  Qh3 {[%clk 0:01:39]} 30. Nh2 {[%clk 0:01:10]}  Nxe4 {[%clk 0:01:29]} 31. Qxe4 {[%clk 0:00:40]}  Rxf2 {[%clk 0:01:29]} 32. Nf1 {[%clk 0:00:39]}  Rcf8 {[%clk 0:01:21]} 33. Bxe5 {[%clk 0:00:39]}  R8f3 {[%clk 0:01:20]} 34. Qxf3 {[%clk 0:00:07]}  Rxf3 {[%clk 0:01:21]} 35. Bxd6 {[%clk 0:00:02]}  cxd6 {[%clk 0:00:52]} 36. Re8+ {[%clk 0:00:02]}  Kf7 {[%clk 0:00:33]} 37. Rae1 {[%clk 0:00:03]}  Rxf1+ {[%clk 0:00:32]} 38. Rxf1+ {[%clk 0:00:00]}  Kxe8 {[%clk 0:00:32]} 0-1


[Site "https://www.chess.com"]

[Event "Titled Tuesday Blitz May 9 Late 2023"]
[White "benny_aizenberg"]
[Black "Santos Flores, Alberto"]
[BlackFideId "3601234"]
[WhiteElo "2646"]
[BlackElo "2235"]
[Result "1-0"]
[Round "08"]
[TimeControl "180+2"]
[Date "2023.05.09"]
[WhiteClock "0:00:17"]
[BlackClock "0:00:13"]

1. f4 {[%clk 0:03:00]}  c5 {[%clk 0:02:59]} 2. Nf3 {[%clk 0:03:00]}  Nc6 {[%clk 0:02:56]} 3. e4 {[%clk 0:03:00]}  g6 {[%clk 0:02:55]} 4. Bc4 {[%clk 0:02:58]}  Bg7 {[%clk 0:02:55]} 5. O-O {[%clk 0:02:58]}  e6 {[%clk 0:02:55]} 6. Nc3 {[%clk 0:02:56]}  Nge7 {[%clk 0:02:55]} 7. d3 {[%clk 0:02:50]}  d5 {[%clk 0:02:54]} 8. Bb3 {[%clk 0:02:50]}  dxe4 {[%clk 0:02:53]} 9. dxe4 {[%clk 0:02:45]}  Qxd1 {[%clk 0:02:53]} 10. Rxd1 {[%clk 0:02:45]}  O-O {[%clk 0:02:51]} 11. Be3 {[%clk 0:02:45]}  b6 {[%clk 0:02:50]} 12. e5 {[%clk 0:02:41]}  Ba6 {[%clk 0:02:39]} 13. Rd7 {[%clk 0:02:24]}  Rfd8 {[%clk 0:02:37]} 14. Rad1 {[%clk 0:02:23]}  Rxd7 {[%clk 0:02:35]} 15. Rxd7 {[%clk 0:02:23]}  Rd8 {[%clk 0:02:35]} 16. Rc7 {[%clk 0:02:16]}  Rc8 {[%clk 0:02:32]} 17. Rxc8+ {[%clk 0:02:09]}  Bxc8 {[%clk 0:02:31]} 18. Bc4 {[%clk 0:02:09]}  Nf5 {[%clk 0:02:25]} 19. Bf2 {[%clk 0:02:09]}  Bb7 {[%clk 0:02:21]} 20. a3 {[%clk 0:02:05]}  h6 {[%clk 0:02:20]} 21. Be2 {[%clk 0:01:58]}  g5 {[%clk 0:02:16]} 22. g3 {[%clk 0:01:51]}  gxf4 {[%clk 0:02:15]} 23. gxf4 {[%clk 0:01:51]}  Kf8 {[%clk 0:02:06]} 24. Bd3 {[%clk 0:01:31]}  Ke7 {[%clk 0:01:43]} 25. Nd2 {[%clk 0:01:31]}  f6 {[%clk 0:01:38]} 26. Bxf5 {[%clk 0:00:45]}  exf5 {[%clk 0:01:38]} 27. Nd5+ {[%clk 0:00:45]}  Ke6 {[%clk 0:01:34]} 28. exf6 {[%clk 0:00:45]}  Bxf6 {[%clk 0:01:34]} 29. Nxf6 {[%clk 0:00:46]}  Kxf6 {[%clk 0:01:34]} 30. Kf1 {[%clk 0:00:46]}  Ke6 {[%clk 0:01:23]} 31. Ke2 {[%clk 0:00:45]}  Kd5 {[%clk 0:01:21]} 32. Kd3 {[%clk 0:00:38]}  Ba6+ {[%clk 0:01:19]} 33. c4+ {[%clk 0:00:39]}  Ke6 {[%clk 0:01:19]} 34. b3 {[%clk 0:00:38]}  Ne7 {[%clk 0:01:14]} 35. Nb1 {[%clk 0:00:25]}  Bb7 {[%clk 0:01:09]} 36. Nc3 {[%clk 0:00:25]}  Bc6 {[%clk 0:01:08]} 37. b4 {[%clk 0:00:23]}  cxb4 {[%clk 0:01:07]} 38. axb4 {[%clk 0:00:23]}  a5 {[%clk 0:01:05]} 39. b5 {[%clk 0:00:23]}  Be4+ {[%clk 0:00:30]} 40. Nxe4 {[%clk 0:00:23]}  fxe4+ {[%clk 0:00:31]} 41. Kxe4 {[%clk 0:00:23]}  Nc8 {[%clk 0:00:30]} 42. f5+ {[%clk 0:00:21]}  Kf7 {[%clk 0:00:29]} 43. c5 {[%clk 0:00:17]}  bxc5 {[%clk 0:00:20]} 44. Bxc5 {[%clk 0:00:17]}  a4 {[%clk 0:00:21]} 45. b6 {[%clk 0:00:16]}  a3 {[%clk 0:00:13]} 46. b7 {[%clk 0:00:16]}  a2 {[%clk 0:00:14]} 47. bxc8=Q {[%clk 0:00:16]}  a1=Q {[%clk 0:00:13]} 48. Qf8# {[%clk 0:00:17]} 1-0


[Site "https://www.chess.com"]

[Event "Titled Tuesday Blitz May 9 Late 2023"]
[White "Jonkman, Harmen"]
[Black "TimGrutter03"]
[WhiteFideId "1002708"]
[WhiteElo "2368"]
[BlackElo "2616"]
[Result "0-1"]
[Round "08"]
[TimeControl "180+2"]
[Date "2023.05.09"]
[WhiteClock "0:00:00"]
[BlackClock "0:00:50"]

1. e4 {[%clk 0:02:06]}  g6 {[%clk 0:02:59]} 2. Nf3 {[%clk 0:02:05]}  Bg7 {[%clk 0:02:59]} 3. Bc4 {[%clk 0:02:05]}  d6 {[%clk 0:02:58]} 4. O-O {[%clk 0:02:05]}  c6 {[%clk 0:02:57]} 5. Bb3 {[%clk 0:02:00]}  Nf6 {[%clk 0:02:54]} 6. Re1 {[%clk 0:01:59]}  O-O {[%clk 0:02:53]} 7. d4 {[%clk 0:01:58]}  Bg4 {[%clk 0:02:51]} 8. Nbd2 {[%clk 0:01:57]}  e5 {[%clk 0:02:48]} 9. h3 {[%clk 0:01:56]}  Bxf3 {[%clk 0:02:47]} 10. Nxf3 {[%clk 0:01:56]}  Nbd7 {[%clk 0:02:46]} 11. dxe5 {[%clk 0:01:49]}  Nxe5 {[%clk 0:02:34]} 12. Bg5 {[%clk 0:01:30]}  Qc7 {[%clk 0:02:32]} 13. Nxe5 {[%clk 0:01:22]}  dxe5 {[%clk 0:02:32]} 14. Qf3 {[%clk 0:01:22]}  Qe7 {[%clk 0:02:23]} 15. Rad1 {[%clk 0:01:15]}  h6 {[%clk 0:02:22]} 16. Be3 {[%clk 0:01:11]}  a5 {[%clk 0:02:06]} 17. a4 {[%clk 0:01:02]}  Rad8 {[%clk 0:01:49]} 18. Bd2 {[%clk 0:00:44]}  b6 {[%clk 0:01:43]} 19. Qg3 {[%clk 0:00:29]}  Kh7 {[%clk 0:01:29]} 20. Qc3 {[%clk 0:00:28]}  c5 {[%clk 0:01:24]} 21. f3 {[%clk 0:00:23]}  Nh5 {[%clk 0:01:10]} 22. Be3 {[%clk 0:00:14]}  Nf4 {[%clk 0:01:10]} 23. Bc4 {[%clk 0:00:15]}  Qg5 {[%clk 0:01:10]} 24. Bxf4 {[%clk 0:00:11]}  exf4 {[%clk 0:01:11]} 25. Qb3 {[%clk 0:00:10]}  Bd4+ {[%clk 0:01:05]} 26. Kh1 {[%clk 0:00:09]}  Qf6 {[%clk 0:01:01]} 27. c3 {[%clk 0:00:08]}  Bf2 {[%clk 0:01:02]} 28. Rf1 {[%clk 0:00:07]}  Be3 {[%clk 0:00:59]} 29. Rd5 {[%clk 0:00:05]}  Rxd5 {[%clk 0:00:53]} 30. Bxd5 {[%clk 0:00:05]}  g5 {[%clk 0:00:50]} 31. Rd1 {[%clk 0:00:00]}  h5 {[%clk 0:00:50]} 0-1


[Site "https://www.chess.com"]

[Event "Titled Tuesday Blitz May 9 Late 2023"]
[White "Kleiman, Jake"]
[Black "Mikhalsky, Vladimir"]
[WhiteFideId "2020041"]
[BlackFideId "14144352"]
[WhiteElo "2599"]
[BlackElo "2236"]
[Result "1-0"]
[Round "08"]
[TimeControl "180+2"]
[Date "2023.05.09"]
[WhiteClock "0:00:40"]
[BlackClock "0:00:18"]

1. e4 {[%clk 0:02:57]}  g6 {[%clk 0:02:59]} 2. d4 {[%clk 0:02:56]}  Bg7 {[%clk 0:02:59]} 3. Nc3 {[%clk 0:02:57]}  d6 {[%clk 0:02:58]} 4. Nf3 {[%clk 0:02:56]}  a6 {[%clk 0:02:58]} 5. a4 {[%clk 0:02:55]}  b6 {[%clk 0:02:58]} 6. Bd3 {[%clk 0:02:55]}  Bb7 {[%clk 0:02:56]} 7. O-O {[%clk 0:02:55]}  Nd7 {[%clk 0:02:55]} 8. h3 {[%clk 0:02:53]}  c5 {[%clk 0:02:51]} 9. Be3 {[%clk 0:02:51]}  Ngf6 {[%clk 0:02:31]} 10. e5 {[%clk 0:02:46]}  dxe5 {[%clk 0:02:25]} 11. dxe5 {[%clk 0:02:46]}  Bxf3 {[%clk 0:02:23]} 12. exf6 {[%clk 0:02:25]}  Bxd1 {[%clk 0:02:20]} 13. fxg7 {[%clk 0:02:26]}  Rg8 {[%clk 0:02:14]} 14. Raxd1 {[%clk 0:02:26]}  Rxg7 {[%clk 0:01:25]} 15. Be4 {[%clk 0:02:23]}  Ra7 {[%clk 0:01:18]} 16. Rd2 {[%clk 0:01:59]}  e6 {[%clk 0:01:10]} 17. Rfd1 {[%clk 0:01:54]}  f5 {[%clk 0:01:07]} 18. Bc6 {[%clk 0:01:49]}  Qc8 {[%clk 0:01:06]} 19. Rd6 {[%clk 0:01:49]}  Re7 {[%clk 0:00:41]} 20. Bg5 {[%clk 0:01:44]}  Rc7 {[%clk 0:00:35]} 21. Bf3 {[%clk 0:01:23]}  Ne5 {[%clk 0:00:35]} 22. Be2 {[%clk 0:01:17]}  Rcd7 {[%clk 0:00:34]} 23. Bxe7 {[%clk 0:01:15]}  Kxe7 {[%clk 0:00:34]} 24. Rxb6 {[%clk 0:01:13]}  Rxd1+ {[%clk 0:00:33]} 25. Nxd1 {[%clk 0:01:12]}  a5 {[%clk 0:00:32]} 26. Rb5 {[%clk 0:01:10]}  Qc7 {[%clk 0:00:31]} 27. Ne3 {[%clk 0:01:06]}  Kf6 {[%clk 0:00:30]} 28. c3 {[%clk 0:01:04]}  f4 {[%clk 0:00:31]} 29. Nc4 {[%clk 0:01:00]}  Nxc4 {[%clk 0:00:30]} 30. Bxc4 {[%clk 0:01:01]}  Qe5 {[%clk 0:00:30]} 31. Bf1 {[%clk 0:00:56]}  f3 {[%clk 0:00:30]} 32. g3 {[%clk 0:00:55]}  Qe1 {[%clk 0:00:29]} 33. Rxa5 {[%clk 0:00:47]}  Qc1 {[%clk 0:00:29]} 34. Rb5 {[%clk 0:00:47]}  Qa1 {[%clk 0:00:27]} 35. a5 {[%clk 0:00:46]}  c4 {[%clk 0:00:27]} 36. Rc5 {[%clk 0:00:43]}  g5 {[%clk 0:00:25]} 37. g4 {[%clk 0:00:42]}  Ke7 {[%clk 0:00:23]} 38. Rxc4 {[%clk 0:00:41]}  Qxa5 {[%clk 0:00:23]} 39. Re4 {[%clk 0:00:40]}  Qa1 {[%clk 0:00:22]} 40. Re3 {[%clk 0:00:39]}  Kd6 {[%clk 0:00:22]} 41. b4 {[%clk 0:00:38]}  Qd1 {[%clk 0:00:20]} 42. Rd3+ {[%clk 0:00:38]}  Qxd3 {[%clk 0:00:20]} 43. Bxd3 {[%clk 0:00:39]}  Ke5 {[%clk 0:00:20]} 44. c4 {[%clk 0:00:39]}  Kd4 {[%clk 0:00:21]} 45. c5 {[%clk 0:00:39]}  Kc3 {[%clk 0:00:20]} 46. c6 {[%clk 0:00:39]}  Kxb4 {[%clk 0:00:18]} 47. c7 {[%clk 0:00:40]} 1-0


[Site "https://www.chess.com"]